bitfinex/quotes_BTCUSD_20250205
["timestamp","ask_amount","ask_price","bid_price","bid_amount"]
[1738768513025,0.302816,98157.0,98156.0,0.18327012]
[1738768513272,0.302816,98157.0,98156.0,0.10264358]
[1738768514041,0.15,98157.0,98156.0,0.10264358]
[1738768515209,0.152815,98158.0,98156.0,0.10264358]
[1738768515210,0.0763,98173.0,98156.0,0.10264358]
[1738768515366,0.152815,98158.0,98157.0,0.10250365]
[1738768515727,0.15,98172.0,98157.0,0.10250365]
[1738768515988,0.152813,98160.0,98157.0,0.10250365]
[1738768516140,0.203721,98174.0,98157.0,0.10250365]
[1738768516342,0.152813,98159.0,98157.0,0.10250365]
[1738768517019,0.152814,98158.0,98157.0,0.10250365]
[1738768517257,0.15,98177.0,98157.0,0.10250365]
[1738768517429,0.01679103,98176.0,98158.0,0.10250365]
[1738768517632,0.152805,98164.0,98158.0,0.10250365]
[1738768517811,0.152802,98167.0,98160.0,0.152811]
[1738768518020,0.203713,98177.0,98161.0,0.10250365]
[1738768518230,0.152808,98162.0,98161.0,0.10250365]
[1738768519029,0.302808,98162.0,98161.0,0.10250365]
[1738768520915,0.22380435,98186.0,98161.0,0.10250365]
[1738768520916,0.02010835,98186.0,98161.0,0.10250365]
[1738768521121,0.21253241,98190.0,98176.0,0.10250365]
[1738768521270,0.152785,98177.0,98176.0,0.10250365]
[1738768521766,0.302785,98177.0,98176.0,0.10250365]
[1738768522563,0.31919851,98177.0,98176.0,0.10250365]
[1738768522823,0.152816,98157.0,98156.0,0.0809064]
[1738768523024,0.06124,98176.0,98156.0,0.18341005]
[1738768523225,0.06124,98176.0,98157.0,0.10250365]
[1738768523430,0.152814,98158.0,98157.0,0.10250365]
[1738768524116,0.302814,98158.0,98157.0,0.10250365]
[1738768524323,0.302814,98158.0,98156.0,0.00013993]
[1738768524324,0.364056,98157.0,98156.0,0.00013993]
[1738768524767,0.046,98158.0,98118.0,0.08076647]
[1738768524768,0.152853,98133.0,98118.0,0.08076647]
[1738768524971,0.06124,98149.0,98132.0,0.18341008]
[1738768525188,0.152843,98140.0,98133.0,0.25535565]
[1738768525360,0.152817,98156.0,98141.0,0.152841]
[1738768525607,0.152838,98143.0,98142.0,0.10250365]
[1738768525821,0.302838,98143.0,98142.0,0.10250365]
[1738768526499,0.15,98143.0,98142.0,0.10250365]
[1738768526708,0.01670931,98158.0,98142.0,0.10250365]
[1738768526878,0.046,98174.0,98148.0,0.10250365]
[1738768527121,0.01661855,98161.0,98148.0,0.10250365]
[1738768527339,0.06124,98171.0,98148.0,0.30627565]
[1738768527541,0.06124,98171.0,98148.0,0.10250365]
[1738768527744,0.152819,98155.0,98149.0,0.152828]
[1738768527996,0.26648577,98174.0,98154.0,0.10250365]
[1738768528123,0.152807,98163.0,98158.0,0.10250365]
[1738768528332,0.152813,98159.0,98158.0,0.10250365]
[1738768529535,0.152853,98133.0,98115.0,0.08076647]
[1738768529742,0.152853,98133.0,98132.0,0.10264361]
[1738768529964,0.302853,98133.0,98132.0,0.10264361]
[1738768530505,0.302853,98133.0,98132.0,0.00013996]
[1738768531135,0.426453,98133.0,98132.0,0.00013996]
[1738768531301,0.44296187,98133.0,98132.0,0.00013996]
[1738768534945,0.31936187,98133.0,98132.0,0.00013996]
[1738768536494,0.31936187,98133.0,98132.0,0.10264361]
[1738768537059,0.203794,98139.0,98132.0,0.10264361]
[1738768537256,0.203778,98146.0,98133.0,0.10250365]
[1738768537605,0.152852,98134.0,98133.0,0.10250365]
[1738768538802,0.15,98141.0,98133.0,0.10250365]
[1738768539049,0.01702132,98142.0,98134.0,0.10250365]
[1738768539364,0.16743241,98160.0,98141.0,0.10250365]
[1738768539544,0.16743241,98160.0,98143.0,0.10250365]
[1738768539688,0.16743241,98160.0,98148.0,0.152829]
[1738768539906,0.15,98157.0,98149.0,0.10250365]
[1738768540103,0.16743241,98170.0,98150.0,0.10250365]
[1738768540308,0.16743241,98180.0,98159.0,0.10250365]
[1738768540512,0.16743241,98180.0,98165.0,0.10250365]
[1738768540955,0.152802,98166.0,98165.0,0.10250365]
[1738768541152,0.16743241,98180.0,98165.0,0.10250365]
[1738768541329,0.152801,98167.0,98165.0,0.10250365]
[1738768541523,0.152802,98166.0,98165.0,0.10250365]
[1738768542492,0.15,98168.0,98165.0,0.10250365]
[1738768543167,0.152802,98166.0,98165.0,0.10250365]
[1738768543669,0.302799,98168.0,98165.0,0.10250365]
[1738768544003,0.15,98168.0,98165.0,0.10250365]
[1738768544867,0.01699281,98169.0,98165.0,0.10250365]
[1738768545043,0.2858977,98188.0,98165.0,0.10250365]
[1738768545225,0.203722,98173.0,98165.0,0.10250365]
[1738768545440,0.15,98179.0,98165.0,0.10250365]
[1738768545630,0.152801,98167.0,98165.0,0.10250365]
[1738768546233,0.152798,98169.0,98166.0,0.01895995]
[1738768546446,0.152798,98169.0,98167.0,0.10250365]
[1738768547058,0.152798,98169.0,98168.0,0.01895995]
[1738768547278,0.152798,98169.0,98168.0,0.1214636]
[1738768549920,0.16938406,98169.0,98168.0,0.1214636]
[1738768551357,0.31938406,98169.0,98168.0,0.1214636]
[1738768552128,0.01658606,98169.0,98168.0,0.1214636]
[1738768552302,0.0001398,98180.0,98168.0,0.10250365]
[1738768552504,0.152796,98170.0,98169.0,0.10250365]
[1738768553120,0.152796,98170.0,98169.0,0.12145784]
[1738768553591,0.01713105,98180.0,98169.0,0.12145784]
[1738768553800,0.01713105,98180.0,98179.0,0.152782]
[1738768554003,0.0001398,98180.0,98179.0,0.25630408]
[1738768554178,0.0001398,98180.0,98179.0,0.25528565]
[1738768555009,0.0001398,98180.0,98179.0,0.10250365]
[1738768555218,0.0002466,98180.0,98179.0,0.12145784]
[1738768555415,0.1530266,98180.0,98179.0,0.12145784]
[1738768557802,0.17013887,98180.0,98179.0,0.12145784]
[1738768559065,0.32013887,98180.0,98179.0,0.10250365]
[1738768559775,0.152808,98162.0,98161.0,0.03028952]
[1738768559907,0.152808,98162.0,98161.0,0.13279317]
[1738768560103,0.152808,98162.0,98161.0,0.10250365]
[1738768561366,0.302808,98162.0,98161.0,0.10250365]
[1738768561567,0.302808,98162.0,98145.0,0.08076647]
[1738768561568,0.15,98159.0,98123.0,0.0900337]
[1738768561770,0.152853,98133.0,98126.0,0.152864]
[1738768562014,0.20378,98145.0,98132.0,0.1834944]
[1738768562177,0.15285,98135.0,98132.0,0.10272793]
[1738768562577,0.152853,98133.0,98132.0,0.10272793]
[1738768562818,0.15,98149.0,98132.0,0.10272793]
[1738768563021,0.16743241,98150.0,98133.0,0.10250365]
[1738768563022,0.152847,98137.0,98133.0,0.10250365]
[1738768563222,0.15,98147.0,98133.0,0.10250365]
[1738768563398,0.15,98147.0,98136.0,0.10250365]
[1738768563617,0.01704898,98154.0,98153.0,0.152822]
[1738768563816,0.049,98178.0,98153.0,0.10250365]
[1738768563977,0.049,98178.0,98138.0,0.203794]
[1738768563978,0.0001068,98180.0,98165.0,0.152803]
[1738768564176,0.0001068,98180.0,98166.0,0.10250365]
[1738768564383,0.0001068,98180.0,98167.0,0.10250365]
[1738768564587,0.152792,98173.0,98167.0,0.10250365]
[1738768564775,0.0001068,98180.0,98167.0,0.10250365]
[1738768564979,0.152785,98178.0,98175.0,0.10250365]
[1738768565223,0.0001068,98180.0,98175.0,0.10250365]
[1738768565396,0.01708213,98180.0,98175.0,0.25529165]
[1738768565679,0.0002466,98180.0,98175.0,0.25529065]
[1738768565852,0.0002466,98180.0,98175.0,0.10250365]
[1738768566276,0.01680417,98180.0,98175.0,0.10250365]
[1738768566661,0.152786,98176.0,98175.0,0.10250365]
[1738768566773,0.1530276,98180.0,98175.0,0.10250365]
[1738768566973,0.1530276,98180.0,98179.0,0.10250365]
[1738768566974,0.0002466,98180.0,98179.0,0.10250365]
[1738768567240,0.0002466,98180.0,98179.0,0.25528565]
[1738768567671,0.0002466,98180.0,98179.0,0.10250365]
[1738768568447,0.1530266,98180.0,98179.0,0.10250365]
[1738768569336,0.0002466,98180.0,98179.0,0.10250365]
[1738768569857,0.0002466,98180.0,98179.0,0.1329165]
[1738768570358,0.1530266,98180.0,98179.0,0.1329165]
[1738768570637,0.0002466,98180.0,98179.0,0.1329165]
[1738768571189,0.1530266,98180.0,98179.0,0.1329165]
[1738768571469,0.3030266,98180.0,98179.0,0.1329165]
[1738768571817,0.3030266,98180.0,98179.0,0.10250365]
[1738768572507,0.152803,98165.0,98164.0,0.03041563]
[1738768572708,0.152803,98165.0,98164.0,0.13291928]
[1738768573042,0.152803,98165.0,98164.0,0.1329165]
[1738768573637,0.152782,98179.0,98164.0,0.1329165]
[1738768573864,0.0002466,98180.0,98175.0,0.10250365]
[1738768574056,0.152786,98176.0,98175.0,0.10250365]
[1738768574244,0.01728023,98180.0,98175.0,0.10250365]
[1738768574742,0.152782,98179.0,98175.0,0.10250365]
[1738768575083,0.0002466,98180.0,98179.0,0.152782]
[1738768575325,0.0002466,98180.0,98179.0,0.31610957]
[1738768575531,0.0002466,98180.0,98179.0,0.16332757]
[1738768577086,0.0002466,98180.0,98179.0,0.1329165]
[1738768578447,0.0002466,98180.0,98179.0,0.31737498]
[1738768579432,0.0002466,98180.0,98179.0,0.1424155]
[1738768579758,0.0002466,98180.0,98179.0,0.18040916]
[1738768580025,0.1530266,98180.0,98179.0,0.18040916]
[1738768581313,0.1530266,98180.0,98179.0,0.17091016]
[1738768581528,0.1530266,98180.0,98179.0,0.1329165]
[1738768582818,0.3030266,98180.0,98179.0,0.1329165]
[1738768583421,0.3030266,98180.0,98179.0,0.10250365]
[1738768585829,0.0002466,98180.0,98179.0,0.10250365]
[1738768586055,0.0002466,98180.0,98179.0,1.27655877]
[1738768586311,0.0002466,98180.0,98179.0,1.33123474]
[1738768586899,0.0002466,98180.0,98179.0,1.3386276]
[1738768587114,0.0002466,98180.0,98179.0,1.1858456]
[1738768587436,0.16743241,98200.0,98180.0,0.15278]
[1738768587437,0.152765,98190.0,98180.0,0.15278]
[1738768587669,0.152767,98189.0,98186.0,0.10250365]
[1738768587873,0.15,98209.0,98186.0,0.10250365]
[1738768588524,0.16743241,98210.0,98186.0,0.10250365]
[1738768588724,0.152769,98187.0,98186.0,0.10250365]
[1738768589172,0.152769,98187.0,98186.0,0.13289651]
[1738768589998,0.16837117,98187.0,98186.0,0.13289651]
[1738768590227,0.16837117,98187.0,98186.0,0.10250365]
[1738768590807,0.01560217,98187.0,98186.0,0.10250365]
[1738768591028,0.152769,98187.0,98186.0,0.10250365]
[1738768592538,0.152805,98165.0,98161.0,0.0900337]
[1738768592698,0.837385,98186.0,98161.0,0.0900337]
[1738768592699,0.0763,98186.0,98164.0,0.10250365]
[1738768592901,0.203722,98173.0,98166.0,0.10250365]
[1738768593144,0.1528,98168.0,98166.0,0.10250365]
[1738768593355,0.1528,98167.0,98166.0,0.10250365]
[1738768593562,0.203705,98181.0,98166.0,0.10250365]
[1738768593790,0.152799,98168.0,98166.0,0.10250365]
[1738768594032,0.1528,98167.0,98166.0,0.10264345]
[1738768595624,0.16852893,98167.0,98166.0,0.10264345]
[1738768598008,0.31852893,98167.0,98166.0,0.0001398]
[1738768598935,0.31852893,98167.0,98166.0,0.10264345]
[1738768600132,0.01572893,98167.0,98166.0,0.25544545]
[1738768600352,0.0804,98197.0,98175.0,0.152787]
[1738768600571,0.0804,98197.0,98176.0,0.10250365]
[1738768600773,0.0452,98198.0,98176.0,0.10250365]
[1738768600774,0.152785,98177.0,98176.0,0.10250365]
[1738768601223,0.15,98187.0,98176.0,0.10250365]
[1738768601430,0.0452,98198.0,98176.0,0.10250365]
[1738768601632,0.152785,98177.0,98176.0,0.10250365]
[1738768601843,0.152781,98180.0,98176.0,0.10250365]
[1738768602048,0.152785,98177.0,98176.0,0.10250365]
[1738768603602,0.203711,98179.0,98176.0,0.10250365]
[1738768603603,0.152782,98179.0,98176.0,0.10250365]
[1738768604013,0.152783,98179.0,98176.0,0.10250365]
[1738768604230,0.16743241,98200.0,98176.0,0.10250365]
[1738768604231,0.152785,98177.0,98176.0,0.10250365]
[1738768606933,0.16839635,98177.0,98176.0,0.10272793]
[1738768607231,0.16839635,98177.0,98176.0,0.00022428]
[1738768607808,0.16839635,98177.0,98176.0,0.10272793]
[1738768609443,0.16839635,98177.0,98176.0,0.00022428]
[1738768610081,0.22963635,98177.0,98176.0,0.00022428]
[1738768610281,0.36404,98167.0,98166.0,0.0001398]
[1738768610484,0.302827,98150.0,98141.0,0.08076647]
[1738768610685,0.364067,98150.0,98141.0,0.08076647]
[1738768611047,0.364067,98150.0,98132.0,0.00022428]
[1738768611304,0.441267,98150.0,98132.0,0.00022428]
[1738768612253,0.3793455,98150.0,98149.0,0.10272793]
[1738768612453,0.3793455,98150.0,98149.0,0.00022428]
[1738768613203,0.3181055,98150.0,98149.0,0.00022428]
[1738768614183,0.3181055,98150.0,98149.0,0.10272793]
[1738768614939,0.3181055,98150.0,98149.0,0.00022428]
[1738768617973,0.3181055,98150.0,98149.0,0.10272793]
[1738768618444,0.3181055,98150.0,98149.0,0.00022428]
[1738768621080,0.3181055,98150.0,98149.0,0.10272793]
[1738768622552,0.3181055,98150.0,98149.0,0.00022428]
[1738768622929,0.3793455,98150.0,98149.0,0.00022428]
[1738768623316,0.5043455,98150.0,98149.0,0.00022428]
[1738768623513,0.364093,98133.0,98132.0,0.00022428]
[1738768623716,0.364093,98133.0,98132.0,0.00036424]
[1738768624115,0.364093,98133.0,98132.0,2.4e-07]
[1738768624316,0.152906,98099.0,98098.0,0.00022428]
[1738768624536,0.152906,98099.0,98098.0,0.10272793]
[1738768624537,0.302906,98099.0,98098.0,0.10272793]
[1738768624853,0.364146,98099.0,98098.0,0.10272793]
[1738768625094,0.364146,98099.0,98098.0,0.00022428]
[1738768625651,0.364146,98099.0,98098.0,0.00069099]
[1738768626264,0.37974997,98099.0,98098.0,0.00069099]
[1738768628052,0.31850997,98099.0,98098.0,0.00069099]
[1738768628593,0.31850997,98099.0,98098.0,0.10319464]
[1738768629199,0.31850997,98099.0,98098.0,0.00069099]
[1738768629785,0.31850997,98099.0,98098.0,0.10319464]
[1738768630216,0.31850997,98099.0,98098.0,0.00069099]
[1738768630673,0.31850997,98099.0,98098.0,0.10319464]
[1738768631115,0.302906,98099.0,98098.0,0.10319464]
[1738768631496,0.31859826,98099.0,98098.0,0.00069099]
[1738768632327,0.31859826,98099.0,98098.0,0.10319464]
[1738768633031,0.31859826,98099.0,98098.0,0.00069099]
[1738768633455,0.31859826,98099.0,98098.0,0.10319464]
[1738768634015,0.31859826,98099.0,98098.0,0.00069099]
[1738768634984,0.15,98090.0,98079.0,0.00022428]
[1738768635177,0.0791,98098.0,98077.0,0.00022428]
[1738768635178,0.302939,98078.0,98077.0,0.00022428]
[1738768635355,0.302939,98078.0,98077.0,0.00036432]
[1738768636510,0.302939,98078.0,98077.0,3.2e-07]
[1738768636637,0.40413596,98078.0,98077.0,3.2e-07]
[1738768637082,0.302955,98068.0,98067.0,6e-07]
[1738768637288,0.302969,98059.0,98058.0,6.7e-07]
[1738768637705,1.802969,98059.0,98058.0,6.7e-07]
[1738768638295,1.82337869,98059.0,98058.0,6.7e-07]
[1738768639163,1.87554761,98059.0,98058.0,6.7e-07]
[1738768639367,0.302983,98050.0,98049.0,2.3e-07]
[1738768639567,0.302983,98050.0,98049.0,3e-07]
[1738768639971,0.349383,98050.0,98049.0,3e-07]
[1738768641818,0.302983,98050.0,98049.0,3e-07]
[1738768643035,0.302983,98050.0,98033.0,0.00022407]
[1738768643036,0.33516648,98043.0,97993.0,1.02127312]
[1738768643324,0.153053,98005.0,98004.0,0.08076647]
[1738768643576,0.153053,98005.0,98004.0,0.18327012]
[1738768643816,0.153053,98005.0,98004.0,0.10250365]
[1738768647608,0.17196151,98005.0,98004.0,0.10250365]
[1738768648474,0.153053,98005.0,98004.0,0.10250365]
[1738768649270,0.204022,98029.0,98004.0,0.10250365]
[1738768649491,0.08612,98047.0,98005.0,0.10250365]
[1738768649492,0.153051,98006.0,98005.0,0.10250365]
[1738768649696,0.15305,98008.0,98005.0,0.10250365]
[1738768649908,0.153051,98006.0,98005.0,0.10250365]
[1738768651121,0.20404,98020.0,98005.0,0.10250365]
[1738768651321,0.153051,98006.0,98005.0,0.10250365]
[1738768651467,0.08076647,98038.0,98005.0,0.10250365]
[1738768651660,0.153047,98009.0,98008.0,0.10250365]
[1738768651937,0.15,98022.0,98009.0,0.0767]
[1738768652069,0.204045,98018.0,98014.0,0.10250365]
[1738768652275,0.153037,98015.0,98014.0,0.10250365]
[1738768652938,0.303037,98015.0,98014.0,0.10250365]
[1738768654176,0.16758324,98050.0,98014.0,0.10250365]
[1738768654417,0.153026,98022.0,98021.0,0.10250365]
[1738768654859,0.204033,98024.0,98021.0,0.10250365]
[1738768654860,0.01937455,98048.0,98021.0,1.12377677]
[1738768655066,0.08076647,98058.0,98038.0,0.10250365]
[1738768655269,0.0489,98077.0,98050.0,0.10250365]
[1738768655472,0.08076647,98091.0,98067.0,0.152956]
[1738768655473,0.152946,98074.0,98067.0,0.152956]
[1738768655729,0.08076647,98091.0,98067.0,1.02127312]
[1738768655970,0.152949,98072.0,98067.0,1.02127312]
[1738768656118,0.16758324,98090.0,98067.0,1.02127312]
[1738768656119,0.15,98089.0,98068.0,0.10250365]
[1738768656318,0.152948,98073.0,98068.0,0.10250365]
[1738768656621,0.00013973,98072.0,98068.0,0.10250365]
[1738768656817,0.00013973,98072.0,98069.0,0.152953]
[1738768657141,0.00013973,98072.0,98070.0,0.10250365]
[1738768658008,0.00013973,98072.0,98071.0,0.25545365]
[1738768658635,0.00013973,98072.0,98071.0,0.10250365]
[1738768659409,0.00013973,98072.0,98071.0,0.25545365]
[1738768660652,0.00024663,98072.0,98071.0,0.10250365]
[1738768661162,0.15319463,98072.0,98071.0,0.10250365]
[1738768661393,0.30319463,98072.0,98071.0,0.10250365]
[1738768662522,0.32255031,98072.0,98071.0,0.10250365]
[1738768663363,0.17255031,98072.0,98071.0,0.10250365]
[1738768665375,0.302969,98059.0,98058.0,0.00022449]
[1738768665490,0.302969,98059.0,98058.0,0.10272814]
[1738768667149,0.32276434,98059.0,98058.0,0.10272814]
[1738768667552,0.302969,98059.0,98058.0,0.10272814]
[1738768669489,0.15,98059.0,98058.0,0.10272814]
[1738768669690,0.08076647,98089.0,98058.0,1.20530126]
[1738768669897,0.15295,98071.0,98069.0,0.10250365]
[1738768670105,0.08076647,98089.0,98071.0,0.15295]
[1738768670380,0.01921227,98087.0,98071.0,0.25647321]
[1738768670621,0.08076647,98103.0,98071.0,0.25545365]
[1738768670820,0.152926,98087.0,98071.0,0.27845365]
[1738768671042,0.152927,98086.0,98071.0,0.27845365]
[1738768671229,0.152939,98079.0,98071.0,0.27845365]
[1738768671372,0.152926,98087.0,98071.0,0.27845365]
[1738768671575,0.01933996,98094.0,98071.0,0.27845365]
[1738768671818,0.203888,98093.0,98071.0,0.27845365]
[1738768672065,0.01933996,98094.0,98071.0,0.27845365]
[1738768672066,0.152929,98085.0,98071.0,0.27845365]
[1738768672285,0.203892,98091.0,98071.0,0.27845365]
[1738768672490,0.152938,98079.0,98071.0,0.27845365]
[1738768672692,0.2039,98088.0,98071.0,0.25545365]
[1738768672862,0.18514663,98088.0,98071.0,0.10250365]
[1738768673173,0.152934,98081.0,98080.0,0.10250365]
[1738768673585,0.15,98095.0,98080.0,0.10250365]
[1738768673901,0.15,98093.0,98088.0,0.10250365]
[1738768674107,0.152923,98089.0,98088.0,0.10250365]
[1738768674967,0.152922,98089.0,98088.0,0.10250365]
[1738768677575,0.01920434,98098.0,98088.0,0.10250365]
[1738768677784,0.38643547,98146.0,98100.0,0.152903]
[1738768678025,0.00014004,98103.0,98102.0,0.10250365]
[1738768678544,0.15304004,98103.0,98102.0,0.10250365]
[1738768680138,0.30304004,98103.0,98102.0,0.10250365]
[1738768680544,0.152919,98092.0,98080.0,0.203913]
[1738768680745,0.203869,98102.0,98089.0,0.152921]
[1738768681106,0.15014004,98103.0,98094.0,0.10250365]
[1738768681232,0.15014004,98103.0,98100.0,0.10250365]
[1738768681436,0.15014004,98103.0,98094.0,1.02127312]
[1738768681437,0.00014004,98103.0,98102.0,0.10250365]
[1738768681845,0.00014004,98103.0,98102.0,0.25642492]
[1738768682041,0.00014004,98103.0,98102.0,0.27840565]
[1738768683479,0.00014004,98103.0,98102.0,1.29376808]
[1738768683679,0.00014004,98103.0,98102.0,0.27840565]
[1738768683989,0.00014004,98103.0,98102.0,0.10250365]
[1738768684770,0.15304004,98103.0,98102.0,0.10250365]
[1738768685589,0.15304004,98103.0,98082.0,1.02127312]
[1738768685590,0.152931,98083.0,98082.0,1.02127312]
[1738768685795,0.152931,98083.0,98082.0,0.10250365]
[1738768687007,0.15,98082.0,98058.0,0.00022449]
[1738768687225,0.152967,98060.0,98059.0,0.10250365]
[1738768687364,0.152962,98064.0,98059.0,0.10250365]
[1738768687563,0.15,98081.0,98059.0,0.10250365]
[1738768687766,0.3569,98067.0,98060.0,0.152966]
[1738768687967,0.203911,98082.0,98061.0,0.10250365]
[1738768688166,0.15,98081.0,98061.0,0.10250365]
[1738768688370,0.152954,98069.0,98062.0,0.152964]
[1738768688569,0.152961,98064.0,98063.0,0.10250365]
[1738768688769,0.15,98077.0,98063.0,0.10250365]
[1738768688950,0.152958,98066.0,98063.0,0.10250365]
[1738768689767,0.152961,98064.0,98063.0,0.10250365]
[1738768689960,0.302961,98064.0,98063.0,0.10250365]
[1738768693193,0.152969,98059.0,98058.0,0.00022449]
[1738768693418,0.152969,98059.0,98058.0,0.00036422]
[1738768693620,0.302969,98059.0,98058.0,0.00036422]
[1738768694751,0.348469,98059.0,98058.0,0.00036422]
[1738768696762,0.348469,98059.0,98025.0,0.0002247]
[1738768696763,0.15,98058.0,98025.0,0.0002247]
[1738768696959,0.15302,98026.0,98025.0,0.0002247]
[1738768697565,0.30302,98026.0,98025.0,0.0002247]
[1738768698604,0.32024784,98026.0,98025.0,0.10272835]
[1738768698806,0.17024784,98026.0,98025.0,0.10272835]
[1738768699467,0.17024784,98026.0,98025.0,0.0002247]
[1738768699674,0.21734784,98026.0,98025.0,0.0002247]
[1738768699901,0.15,98023.0,97999.0,0.00022428]
[1738768700112,0.303037,98015.0,97999.0,0.00022428]
[1738768702518,0.32075653,98015.0,97999.0,0.00022428]
[1738768704914,0.32075653,98015.0,98014.0,0.10272835]
[1738768705322,0.32075653,98015.0,98014.0,0.0002247]
[1738768709448,0.32075653,98015.0,98014.0,0.10272835]
[1738768710527,0.32075653,98015.0,98014.0,0.0002247]
[1738768710943,0.38190653,98015.0,98014.0,0.0002247]
[1738768711147,0.43120653,98015.0,98014.0,0.0002247]
[1738768712021,0.32075653,98015.0,98014.0,0.0002247]
[1738768712941,0.303061,98000.0,97999.0,0.00022428]
[1738768713157,0.303061,98000.0,97999.0,0.10319403]
[1738768713392,0.364211,98000.0,97999.0,0.00069038]
[1738768713677,0.153097,97977.0,97976.0,0.01016]
[1738768713903,0.153097,97977.0,97976.0,0.11266365]
[1738768714945,0.17070517,97977.0,97976.0,0.11266365]
[1738768716340,0.38185517,97977.0,97976.0,0.01016]
[1738768716538,0.38185517,97977.0,97964.0,0.00022449]
[1738768716539,0.303115,97965.0,97964.0,0.00022449]
[1738768717970,0.303115,97965.0,97964.0,0.00036443]
[1738768719232,0.320423,97965.0,97964.0,0.00036443]
[1738768719429,0.3932952,97965.0,97964.0,0.00036443]
[1738768719673,0.320423,97965.0,97964.0,0.00036443]
[1738768720383,0.400823,97965.0,97964.0,0.00036443]
[1738768720742,0.41954186,97965.0,97964.0,0.00036443]
[1738768721407,0.33914186,97965.0,97964.0,0.00036443]
[1738768721613,0.320423,97965.0,97964.0,0.00036443]
[1738768729852,0.320423,97965.0,97964.0,0.10286808]
[1738768732594,0.320423,97965.0,97964.0,0.00036443]
[1738768732890,0.320423,97965.0,97964.0,0.10286808]
[1738768734124,0.06115,98002.0,97964.0,0.10286808]
[1738768734334,0.15,97997.0,97965.0,0.10250365]
[1738768734512,0.01785846,97998.0,97978.0,0.10250365]
[1738768734716,0.153086,97984.0,97983.0,0.10250365]
[1738768735495,7.01756699,98000.0,97983.0,0.10250365]
[1738768735721,7.01756699,98000.0,97995.0,0.10250365]
[1738768736059,0.153067,97996.0,97995.0,0.10250365]
[1738768737004,0.15353331,97996.0,97995.0,0.10250365]
[1738768737207,0.30353331,97996.0,97995.0,0.10250365]
[1738768738899,0.15353331,97996.0,97995.0,0.10250365]
[1738768739498,0.00069081,97996.0,97995.0,0.10250365]
[1738768739886,0.00069081,97996.0,97995.0,0.25557265]
[1738768740217,0.00069081,97996.0,97995.0,0.10250365]
[1738768740628,0.00069081,97996.0,97995.0,0.35837265]
[1738768740866,0.00069081,97996.0,97995.0,0.39000736]
[1738768741675,0.00069081,97996.0,97995.0,0.94171452]
[1738768741881,6.15262893,98000.0,97999.0,0.313062]
[1738768742086,2.12234147,98000.0,97999.0,0.46026565]
[1738768742304,0.08076647,98051.0,98050.0,0.152983]
[1738768742489,0.08076647,98051.0,98050.0,1.12377677]
[1738768742642,0.152981,98051.0,98050.0,1.12377677]
[1738768743162,0.0173296,98063.0,98050.0,1.12377677]
[1738768743367,0.30298,98052.0,98051.0,0.10250365]
[1738768743595,0.30298,98052.0,98015.0,0.08076647]
[1738768743596,0.15,98052.0,98015.0,0.08076647]
[1738768743959,0.0467,98049.0,98029.0,0.153015]
[1738768744109,0.15,98047.0,98034.0,0.10250365]
[1738768744320,0.152996,98042.0,98035.0,0.10250365]
[1738768744522,0.153005,98036.0,98035.0,0.10250365]
[1738768745491,0.0773,98035.0,98007.0,1.02127312]
[1738768745718,0.15,98021.0,98013.0,0.08076647]
[1738768745919,0.303037,98015.0,98014.0,0.10250365]
[1738768747440,0.153037,98015.0,98014.0,0.10250365]
[1738768750505,0.14655044,98015.0,98014.0,0.10250365]
[1738768751002,0.16008,98022.0,97972.0,0.193913]
[1738768751240,0.15309,97981.0,97980.0,0.08076647]
[1738768751450,0.15309,97981.0,97980.0,0.18327012]
[1738768751657,0.15309,97981.0,97980.0,0.10250365]
[1738768753623,0.15309,97981.0,97980.0,0.10272793]
[1738768756016,0.01749353,97991.0,97980.0,0.10272793]
[1738768756254,0.153089,97982.0,97981.0,0.10250365]
[1738768756912,0.15,97996.0,97981.0,0.10250365]
[1738768757135,0.153083,97986.0,97985.0,0.10250365]
[1738768757336,0.153083,97986.0,97985.0,1.12377677]
[1738768757553,0.153083,97986.0,97985.0,0.10250365]
[1738768757754,0.153083,97986.0,97985.0,1.12377677]
[1738768758162,0.153083,97986.0,97985.0,0.10250365]
[1738768758565,0.303083,97986.0,97985.0,0.10250365]
[1738768758775,0.30309,97981.0,97980.0,0.00022428]
[1738768761961,0.30309,97981.0,97980.0,0.10272793]
[1738768764372,0.15309,97981.0,97980.0,0.10272793]
[1738768766821,0.15309,97981.0,97980.0,0.00022428]
[1738768768388,0.43129,97981.0,97980.0,0.00022428]
[1738768769195,0.45003766,97981.0,97980.0,0.00022428]
[1738768769559,0.15,97980.0,97964.0,0.00022449]
[1738768769772,0.293115,97965.0,97964.0,0.00036443]
[1738768772418,0.1593918,97965.0,97964.0,0.00036443]
[1738768772635,0.06115,97984.0,97964.0,0.00036443]
[1738768772636,0.0773,97991.0,97964.0,0.10286808]
[1738768772836,0.153114,97967.0,97965.0,0.10250365]
[1738768773037,0.153114,97966.0,97965.0,0.10250365]
[1738768773244,0.153106,97971.0,97965.0,0.10250365]
[1738768773505,0.153095,97978.0,97971.0,0.153105]
[1738768773708,0.204104,97989.0,97973.0,0.10250365]
[1738768773929,0.153101,97974.0,97973.0,0.10250365]
[1738768774244,0.204106,97988.0,97973.0,0.10250365]
[1738768774455,0.06307162,97996.0,97973.0,0.10250365]
[1738768774661,0.204116,97984.0,97973.0,0.10250365]
[1738768774863,0.153101,97974.0,97973.0,0.10250365]
[1738768775271,0.204127,97978.0,97973.0,0.10250365]
[1738768775545,0.153101,97974.0,97973.0,0.10250365]
[1738768776104,0.204125,97979.0,97973.0,0.10250365]
[1738768776105,0.204127,97979.0,97973.0,0.10250365]
[1738768776330,0.15,97990.0,97973.0,0.10250365]
[1738768776647,0.15,97988.0,97973.0,0.10250365]
[1738768776878,0.21985856,98000.0,97973.0,0.10250365]
[1738768776879,0.153101,97974.0,97973.0,0.10250365]
[1738768779767,0.0468,97997.0,97973.0,0.10250365]
[1738768779900,0.153101,97974.0,97973.0,0.10250365]
[1738768780633,0.153101,97974.0,97973.0,1.27687977]
[1738768780634,0.0002245,97974.0,97973.0,1.27687977]
[1738768781208,0.0002245,97974.0,97973.0,1.29987977]
[1738768782068,0.0002245,97974.0,97973.0,1.27687977]
[1738768791870,0.0002245,97974.0,97973.0,1.12377677]
[1738768792082,0.0002245,97974.0,97973.0,1.27687977]
[1738768793701,0.0002245,97974.0,97973.0,1.12377677]
[1738768794114,0.0002245,97974.0,97973.0,1.27687977]
[1738768794529,0.0002245,97974.0,97973.0,1.12377677]
[1738768794830,0.0002245,97974.0,97973.0,1.27687977]
[1738768795060,0.0002245,97974.0,97973.0,1.29987977]